bitfinex/quotes_SOLUSD_20241111
["timestamp","ask_amount","ask_price","bid_price","bid_amount"]
[1731357937689,21.55507638,221.32,221.26,21.65507638]
[1731357937991,21.55507638,221.32,221.26,21.55507638]
[1731357938188,21.55507638,221.34,221.29,0.1]
[1731357938709,21.14055638,221.34,221.27,0.1]
[1731357938914,21.14055638,221.34,221.26,21.65507638]
[1731357939405,21.14055638,221.34,221.27,0.1]
[1731357939714,21.14055638,221.34,221.29,0.1]
[1731357940619,21.55507638,221.4,221.33,0.1]
[1731357941097,21.55507638,221.4,221.32,21.55507638]
[1731357941300,21.55507638,221.4,221.33,0.1]
[1731357941502,21.55507638,221.4,221.31,0.2]
[1731357941815,21.55507638,221.38,221.31,0.2]
[1731357942503,21.55507638,221.38,221.3,21.55507638]
[1731357943189,21.55507638,221.4,221.33,0.2]
[1731357943418,10.19231983,221.39,221.33,0.2]
[1731357943591,21.55507638,221.4,221.33,0.2]
[1731357943792,21.55507638,221.4,221.33,0.1]
[1731357944085,21.55507638,221.45,221.38,0.1]
[1731357944297,21.55507638,221.43,221.34,21.65507638]
[1731357944600,21.55507638,221.45,221.37,0.1]
[1731357944815,21.55507638,221.45,221.36,21.55507638]
[1731357945017,21.55507638,221.41,221.34,21.55507638]
[1731357945492,4.70443317,221.51,221.33,21.70996633]
[1731357945692,20.0,221.49,221.33,21.70996633]
[1731357945996,4.70443317,221.51,221.38,0.2]
[1731357946200,6.491,221.53,221.38,0.2]
[1731357946513,6.491,221.53,221.41,21.60996633]
[1731357946698,6.491,221.53,221.42,0.1]
[1731357947710,6.491,221.53,221.37,21.60996633]
[1731357948083,16.226,221.52,221.36,50.0]
[1731357948290,23.776884,221.51,221.36,50.0]
[1731357948595,20.0,221.46,221.36,50.0]
[1731357948798,23.776884,221.43,221.36,50.0]
[1731357949098,26.75693349,221.42,221.36,50.0]
[1731357950421,6.75693349,221.42,221.36,50.0]
[1731357950795,6.75693349,221.5,221.36,50.0]
[1731357951108,20.0,221.49,221.36,50.0]
[1731357951304,6.75693349,221.48,221.36,50.0]
[1731357952212,20.0,221.47,221.36,50.0]
[1731357952391,6.8551141,221.5,221.36,50.0]
[1731357952392,6.75693349,221.46,221.36,50.0]
[1731357953400,6.75693349,221.46,221.4,0.1]
[1731357953598,0.2728,221.53,221.4,0.1]
[1731357953904,6.75693349,221.52,221.36,71.60996633]
[1731357954221,13.61204759,221.52,221.36,71.50996633]
[1731357954420,13.61204759,221.52,221.36,50.0]
[1731357955021,20.0,221.51,221.36,50.0]
[1731357955232,20.0,221.49,221.36,50.0]
[1731357955520,23.776884,221.46,221.36,50.0]
[1731357955701,13.61204759,221.45,221.36,50.0]
[1731357956224,23.776884,221.44,221.36,50.0]
[1731357956400,6.75693349,221.43,221.36,50.0]
[1731357957208,11.09976148,221.53,221.3,0.2]
[1731357957426,11.09976148,221.53,221.3,0.1]
[1731357957427,56.40583927,221.52,221.3,0.1]
[1731357957727,69.81071589,221.52,221.28,21.70996633]
[1731357957900,69.81071589,221.52,221.28,0.1]
[1731357958419,8.69952296,221.48,221.25,0.1]
[1731357958599,45.10536223,221.47,221.25,0.1]
[1731357958925,36.40583927,221.47,221.25,0.1]
[1731357959224,12.62895527,221.47,221.3,0.1]
[1731357959716,20.0,221.46,221.28,0.1]
[1731357959914,26.26893274,221.46,221.28,0.2]
[1731357960114,26.26893274,221.46,221.3,0.1]
[1731357960318,26.26893274,221.46,221.31,0.1]
[1731357960617,30.04581674,221.45,221.31,0.1]
[1731357961325,30.04581674,221.45,221.29,0.1]
[1731357962122,30.04581674,221.45,221.3,0.1]
[1731357962927,30.04581674,221.45,221.31,0.1]
[1731357963104,30.04581674,221.45,221.3,0.1]
[1731357963623,23.776884,221.43,221.27,25.1]
[1731357963840,4.54235807,221.42,221.27,25.1]
[1731357964322,4.54235807,221.42,221.29,0.2]
[1731357964920,4.54235807,221.42,221.29,0.1]
[1731357965117,4.54235807,221.42,221.29,0.2]
[1731357965836,4.54235807,221.42,221.29,0.1]
[1731357966019,4.54235807,221.42,221.28,0.1]
[1731357966338,4.54235807,221.42,221.27,24.5]
[1731357966517,4.54235807,221.42,221.28,0.1]
[1731357966716,4.54235807,221.42,221.29,0.1]
[1731357966934,4.54235807,221.42,221.29,0.2]
[1731357967318,4.54235807,221.42,221.32,0.1]
[1731357967518,4.54235807,221.42,221.3,0.1]
[1731357967720,4.54235807,221.42,221.33,0.1]
[1731357967926,15.8275,221.46,221.33,0.2]
[1731357968132,12.62895527,221.48,221.35,0.1]
[1731357968517,4.70454297,221.5,221.39,0.1]
[1731357968842,6.36002253,221.57,221.43,0.1]
[1731357969019,10.97188735,221.58,221.44,0.2]
[1731357969339,12.62895527,221.58,221.4,0.1]
[1731357969518,6.36002253,221.57,221.38,0.1]
[1731357969838,13.5,221.54,221.2,21.50996633]
[1731357970037,13.5,221.52,221.23,0.1]
[1731357970216,13.5,221.5,221.23,0.1]
[1731357970413,13.5,221.46,221.21,0.1]
[1731357970611,43.776884,221.43,221.23,0.1]
[1731357970838,43.776884,221.41,221.23,0.1]
[1731357971031,23.776884,221.39,221.23,0.1]
[1731357971237,6.70226607,221.38,221.23,0.1]
[1731357971851,6.70226607,221.38,221.17,21.5835]
[1731357971852,6.70226607,221.38,221.2,0.1]
[1731357972141,6.70226607,221.38,221.17,21.6835]
[1731357972142,23.776884,221.37,221.17,0.1]
[1731357972449,23.776884,221.35,221.17,0.1]
[1731357972653,6.70226607,221.34,221.17,0.1]
[1731357972946,23.776884,221.33,221.17,0.1]
[1731357973130,6.70226607,221.32,221.15,0.1]
[1731357973337,6.70226607,221.32,221.16,0.1]
[1731357973533,6.70226607,221.32,221.15,0.1]
[1731357973534,23.776884,221.31,221.14,0.1]
[1731357973724,6.70226607,221.3,221.13,0.1]
[1731357973930,23.776884,221.29,221.13,0.1]
[1731357974127,23.776884,221.27,221.12,0.1]
[1731357974325,6.70226607,221.26,221.12,0.1]
[1731357975936,23.776884,221.25,221.12,0.1]
[1731357976143,30.47915007,221.25,221.08,0.1]
[1731357977033,30.47915007,221.23,221.06,0.2]
[1731357977438,23.776884,221.21,221.03,0.1]
[1731357977639,6.70226607,221.2,221.03,0.1]
[1731357977835,23.776884,221.19,221.03,0.1]
[1731357979152,30.14785918,221.19,221.03,0.1]
[1731357979662,30.14785918,221.19,221.05,0.1]
[1731357979839,11.08072122,221.19,221.08,0.1]
[1731357980044,4.70974604,221.19,221.08,0.1]
[1731357980342,4.70974604,221.19,221.06,0.1]
[1731357980542,4.70974604,221.19,221.04,21.50996633]
[1731357980543,11.08072122,221.19,221.04,21.60996633]
[1731357980744,11.08072122,221.19,221.05,0.1]
[1731357980944,6.37097518,221.18,221.05,0.1]
[1731357981252,6.37097518,221.18,221.08,0.1]
[1731357981552,6.37097518,221.18,221.01,0.17372865]
[1731357981553,23.776884,221.24,221.09,0.1]
[1731357981754,6.37097518,221.21,221.09,0.1]
[1731357982468,23.776884,221.2,221.07,0.1]
[1731357982662,23.776884,221.2,221.09,0.1]
[1731357983155,6.37097518,221.2,221.09,0.1]
[1731357984762,6.37097518,221.2,221.08,0.1]
[1731357984958,6.37097518,221.2,221.1,0.1]
[1731357985136,22.52387518,221.32,221.14,0.1]
[1731357985342,8.09000251,221.28,221.15,0.1]
[1731357985557,14.46097769,221.28,221.14,0.1]
[1731357985737,6.37097518,221.27,221.14,0.1]
[1731357987357,6.37097518,221.27,221.12,0.1]
[1731357987868,6.37097518,221.27,221.14,0.1]
[1731357988760,6.37097518,221.27,221.15,0.1]
[1731357989456,6.593,221.34,221.21,0.2]
[1731357989659,6.37097518,221.37,221.25,0.1]
[1731357989997,8.090002,221.38,221.28,0.1]
[1731357990170,9.45249067,221.38,221.2,0.1]
[1731357990344,11.36850904,221.37,221.18,0.1]
[1731357990541,20.82100004,221.37,221.16,0.1]
[1731357990746,20.82100004,221.37,221.13,6.6543]
[1731357990954,13.5,221.36,221.12,0.1]
[1731357991268,3.6143,221.34,221.12,0.1]
[1731357991443,12.25992342,221.33,221.12,0.1]
[1731357991640,23.776884,221.32,221.12,0.1]
[1731357991847,23.776884,221.3,221.12,0.1]
[1731357992172,23.776884,221.28,221.11,0.1]
[1731357992467,23.776884,221.26,221.11,0.2]
[1731357992667,23.776884,221.24,221.11,0.1]
[1731357992846,6.37097518,221.24,221.11,0.1]
[1731357993046,5.89990089,221.23,221.11,0.1]
[1731357993468,5.89990089,221.23,221.09,0.1]
[1731357994173,5.89990089,221.23,221.07,23.976884]
[1731357994563,5.89990089,221.23,221.09,0.1]
[1731357994877,23.776884,221.22,221.1,0.1]
[1731357995182,6.37097518,221.21,221.1,0.1]
[1731357995349,6.37097518,221.21,221.07,0.2]
[1731357996164,6.37097518,221.21,221.1,0.1]
[1731357996474,6.37097518,221.21,221.07,0.1]
[1731357996475,6.37097518,221.21,221.07,0.2]
[1731357996879,23.776884,221.2,221.05,0.2]
[1731357997054,6.36317518,221.19,221.05,0.2]
[1731357997252,6.36317518,221.19,221.05,0.1]
[1731357997676,23.776884,221.18,221.03,0.1]
[1731357997855,6.36317518,221.17,221.03,0.1]
[1731357998174,6.36317518,221.17,221.01,0.27372865]
[1731357998363,23.776884,221.16,221.01,0.27372865]
[1731357998565,6.36317518,221.15,221.01,0.27372865]
[1731357999461,23.776884,221.14,221.01,0.17372865]
[1731357999671,23.776884,221.12,221.01,0.17372865]
[1731357999860,6.36317518,221.13,221.01,0.17372865]
[1731358000180,30.14005918,221.12,221.01,0.17372865]
[1731358000871,6.36317518,221.11,221.01,0.17372865]
[1731358004654,4.7120676,221.14,221.01,0.27372865]
[1731358004874,8.1755227,221.15,221.04,0.1]
[1731358005072,1.81550017,221.15,221.04,0.1]
[1731358005276,6.36317518,221.16,221.06,0.1]
[1731358006261,6.36317518,221.16,221.01,0.27372865]
[1731358006485,12.72319771,221.16,221.04,0.1]
[1731358006778,12.72319771,221.16,221.06,0.1]
[1731358007292,4.71118311,221.17,221.1,0.1]
[1731358007583,1.89293114,221.21,221.08,0.1]
[1731358007753,4.71028317,221.23,221.12,0.1]
[1731358007959,6.36002253,221.24,221.12,0.1]
[1731358008157,6.36317518,221.23,221.1,0.1]
[1731358008377,4.31261851,221.23,221.1,0.1]
[1731358008576,6.36002253,221.22,221.05,21.50996633]
[1731358008791,6.36002253,221.22,221.01,21.68369498]
[1731358008792,5.69071916,221.21,221.01,21.68369498]
[1731358009087,6.36002253,221.2,221.03,21.50996633]
[1731358009288,23.776884,221.19,221.03,21.50996633]
[1731358009592,28.07347379,221.19,221.03,21.50996633]
[1731358009792,34.43349632,221.19,221.01,0.17372865]
[1731358009993,23.776884,221.17,221.01,0.17372865]
[1731358010289,23.776884,221.15,221.01,0.17372865]
[1731358010489,23.776884,221.13,221.01,0.17372865]
[1731358010694,6.35567443,221.12,221.01,0.17372865]
[1731358010871,23.776884,221.11,221.01,0.17372865]
[1731358011185,23.776884,221.09,221.01,0.17372865]
[1731358011388,6.35567443,221.08,221.01,0.17372865]
[1731358011964,23.776884,221.07,221.01,0.17372865]
[1731358012164,28.07347379,221.07,221.01,0.17372865]
[1731358012569,24.99727379,221.07,221.01,0.17372865]
[1731358012979,6.35567443,221.06,221.01,0.17372865]
[1731358013774,20.0,221.05,221.01,0.17372865]
[1731358013970,24.29658979,221.05,221.01,0.17372865]
[1731358014284,4.29658979,221.05,221.01,0.17372865]
[1731358015091,25.66307733,221.05,221.01,0.17372865]
[1731358015268,23.776884,221.01,220.85,15.2153]
[1731358015476,20.0,220.98,220.81,6.5841]
[1731358015673,20.0,220.96,220.81,6.5841]
[1731358015984,26.35464721,220.96,220.81,6.5841]
[1731358016169,26.35464721,220.96,220.62,0.78651077]
[1731358016170,20.0,220.94,220.74,6.5841]
[1731358016379,23.776884,220.91,220.74,6.5841]
[1731358016677,6.35464721,220.9,220.74,6.5841]
[1731358017401,12.71466974,220.9,220.75,21.50996633]
[1731358017702,43.776884,220.95,220.69,0.1]
[1731358017879,43.776884,220.93,220.73,21.50996633]
[1731358018088,49.84612652,220.93,220.74,1.03547806]
[1731358018282,23.776884,220.91,220.74,1.03547806]
[1731358019104,20.0,220.88,220.74,1.03547806]
[1731358019399,17.13458907,220.9,220.74,1.03547806]
[1731358019599,11.06534655,220.9,220.74,1.03547806]
[1731358019994,43.776884,220.89,220.74,1.03547806]
[1731358020196,49.84612652,220.89,220.74,1.03547806]
[1731358020498,8.00526689,220.96,220.75,21.50996633]
[1731358020697,12.42682394,220.95,220.75,21.50996633]
[1731358021002,8.00526689,220.96,220.75,21.50996633]
[1731358021488,13.81144584,220.96,220.76,23.776884]
[1731358021685,20.0,220.95,220.76,23.776884]
[1731358021880,25.80617895,220.95,220.76,23.776884]
[1731358022200,23.776884,220.94,220.76,23.776884]
[1731358022509,29.58306295,220.94,220.76,23.776884]
[1731358022995,20.0,220.95,220.78,23.776884]
[1731358023201,8.00526689,220.96,220.77,21.50996633]
[1731358023202,6.1583,220.96,220.81,21.50996633]
[1731358023381,5.89842276,221.03,220.8,23.776884]
[1731358023382,12.18532276,221.03,220.8,30.080484]
[1731358023702,12.09307895,221.03,220.87,23.776884]
[1731358023916,4.70634733,221.04,220.89,23.776884]
[1731358024090,1.85237728,221.08,220.89,23.776884]
[1731358024410,0.1,221.04,220.83,21.50996633]
[1731358024607,11.70460171,221.03,220.82,21.50996633]
[1731358024818,10.5858554,221.02,220.84,21.50996633]
[1731358024999,11.70460171,221.03,220.85,23.776884]
[1731358025207,20.0,221.02,220.85,23.776884]
[1731358025398,11.70460171,221.03,220.84,21.50996633]
[1731358025604,3.81019236,221.02,220.84,21.50996633]
[1731358025913,3.81019236,221.02,220.8,6.3036]
[1731358025914,3.81019236,221.02,220.81,21.50996633]
[1731358026096,3.81019236,221.02,220.83,21.50996633]
[1731358026503,23.776884,221.02,220.85,21.50996633]
[1731358026706,20.0,221.01,220.85,21.50996633]
[1731358026902,20.0,221.01,220.86,23.776884]
[1731358027216,24.70733705,221.06,220.87,21.50996633]
[1731358027413,4.70733705,221.06,220.88,23.776884]
[1731358027712,8.51752941,221.06,220.88,23.776884]
[1731358028020,5.90617895,221.05,220.83,21.50996633]
[1731358028213,11.80460171,221.05,220.84,23.776884]
[1731358028413,23.776884,221.04,220.84,23.776884]
[1731358028608,20.0,221.01,220.82,23.776884]
[1731358028990,20.0,221.01,220.83,21.50996633]
[1731358029217,4.70733705,221.06,220.88,23.776884]
[1731358030110,5.80617895,221.05,220.85,21.50996633]
[1731358030621,5.80617895,221.05,220.84,23.776884]
[1731358030792,23.776884,221.05,220.87,23.776884]
[1731358030993,20.0,221.04,220.87,23.776884]
[1731358031320,8.32764635,221.09,220.87,23.776884]
[1731358031625,12.47462276,221.09,220.87,21.50996633]
[1731358031920,10.61190404,221.08,220.88,23.776884]
[1731358032102,16.41808299,221.08,220.87,23.776884]
[1731358032306,5.46488693,221.07,220.85,23.776884]
[1731358032611,23.776884,221.06,220.85,23.776884]
[1731358032912,20.0,221.05,220.85,23.776884]
[1731358033118,23.776884,221.04,220.85,23.776884]
[1731358033305,20.0,221.03,220.83,23.776884]
[1731358033504,20.0,221.03,220.84,21.50996633]
[1731358033707,5.36488693,221.02,220.85,23.776884]
[1731358034819,11.26330969,221.02,220.8,27.81356633]
[1731358035037,11.26330969,221.02,220.82,21.50996633]
[1731358035392,11.26330969,221.02,220.84,21.50996633]
[1731358035718,0.2728,221.04,220.88,21.50996633]
[1731358036092,0.2728,221.04,220.89,23.776884]
[1731358036817,0.2728,221.04,220.94,21.50996633]
[1731358036995,0.2728,221.04,220.96,21.50996633]
[1731358037196,0.2728,221.04,220.97,23.776884]
[1731358037797,0.2728,221.04,220.91,15.1155]
[1731358037798,0.2728,221.04,220.92,21.50996633]
[1731358038013,0.2728,221.04,220.93,23.776884]
[1731358038405,0.2728,221.04,220.87,21.50996633]
[1731358039914,0.2728,221.04,220.88,23.776884]
[1731358041614,0.2728,221.04,220.89,21.50996633]
[1731358041813,0.2728,221.04,220.91,21.50996633]
[1731358042199,0.2728,221.04,220.89,0.1]
[1731358042403,0.2728,221.04,220.93,21.50996633]
[1731358042610,0.2728,221.04,220.94,23.776884]
[1731358043429,0.2728,221.04,220.96,23.776884]
[1731358044020,0.2728,221.04,220.97,21.50996633]
[1731358044222,0.2728,221.04,220.98,23.776884]
[1731358044923,0.2728,221.04,220.99,21.50996633]
[1731358045122,0.2728,221.04,221.0,23.776884]
[1731358045706,0.2728,221.04,220.96,23.776884]
[1731358045934,0.2728,221.04,220.95,23.776884]
[1731358046220,0.2728,221.04,220.97,23.776884]
[1731358047208,0.2728,221.04,220.95,23.776884]
[1731358048201,0.2728,221.04,220.96,21.50996633]
[1731358048727,0.2728,221.04,220.97,23.776884]
[1731358048925,0.2728,221.04,220.9,0.1]
[1731358048926,0.2728,221.04,220.9,21.50996633]
[1731358049135,0.2728,221.04,220.88,21.50996633]
[1731358049428,6.3932,221.03,220.84,36.52546633]
[1731358049616,21.40545947,221.02,220.82,21.50996633]
[1731358049811,23.776884,221.01,220.82,21.50996633]
[1731358050017,5.5627213,221.0,220.8,21.50996633]
[1731358050523,29.67530676,220.99,220.78,21.50996633]
[1731358050718,5.5627213,220.98,220.78,21.50996633]
[1731358051309,6.3932,220.97,220.76,21.50996633]
[1731358051631,6.3932,220.97,220.77,23.776884]
[1731358052009,6.3932,220.97,220.76,21.50996633]
[1731358052415,11.9559213,220.97,220.76,21.50996633]
[1731358052925,11.9559213,220.97,220.78,21.50996633]
[1731358053333,29.67530676,220.96,220.74,21.50996633]
[1731358053628,40.0691888,220.96,220.74,21.50996633]
[1731358054035,40.0691888,220.96,220.76,21.50996633]
[1731358054244,6.3932,220.97,220.7,16.0976]
[1731358054245,6.3932,220.97,220.78,21.50996633]
[1731358054623,6.3932,220.97,220.79,23.776884]
[1731358055625,6.3932,220.97,220.8,21.50996633]
[1731358055915,6.3932,220.97,220.85,23.776884]
[1731358056339,6.666,220.97,220.85,23.776884]
[1731358056540,6.666,220.97,220.86,21.50996633]
[1731358056746,0.2728,220.97,220.9,21.50996633]
[1731358057039,0.2728,220.97,220.91,23.776884]
[1731358057239,0.2728,220.97,220.9,23.776884]
[1731358057414,0.2728,220.97,220.85,21.50996633]
[1731358057819,0.2728,220.97,220.83,21.50996633]
[1731358058041,0.2728,220.97,220.82,45.28685033]
[1731358058739,0.2728,220.97,220.78,0.1]
[1731358058740,0.2728,220.97,220.85,23.776884]
[1731358059237,0.2728,220.97,220.87,23.776884]
[1731358059446,0.2728,220.97,220.89,23.776884]
[1731358059733,0.2728,220.97,220.91,23.776884]
[1731358060252,0.2728,220.97,220.92,21.50996633]
[1731358060418,0.2728,220.97,220.93,23.776884]
[1731358060929,0.2728,220.97,220.96,21.50996633]
[1731358061122,0.2728,220.97,220.96,23.776884]
[1731358061325,0.2728,220.97,220.96,45.28685033]
[1731358061539,0.2728,220.97,220.96,45.38685033]
[1731358061744,6.2276,221.16,221.0,0.1]
[1731358061946,6.2276,221.16,221.06,21.50996633]
[1731358062120,6.2276,221.16,221.04,21.50996633]
[1731358062321,6.2276,221.16,220.98,21.50996633]
[1731358062542,5.89842276,221.15,220.98,21.50996633]
[1731358062924,5.89842276,221.15,220.96,23.776884]
[1731358063141,5.89842276,221.15,220.97,21.50996633]
[1731358063522,5.89842276,221.15,220.99,21.50996633]
[1731358063722,6.2276,221.16,221.0,23.776884]
[1731358063944,23.776884,221.15,221.0,23.776884]
[1731358064125,23.776884,221.15,220.98,23.776884]
[1731358066338,6.2276,221.16,221.03,21.50996633]
[1731358066522,6.2276,221.16,220.99,0.1]
[1731358066523,6.2276,221.16,221.06,23.776884]
[1731358067737,15.7434,221.21,221.1,23.776884]
[1731358067932,15.7434,221.21,221.11,21.50996633]
[1731358068137,6.5806,221.23,221.12,23.776884]
[1731358068737,6.5806,221.23,221.15,21.50996633]
[1731358068935,15.6673,221.28,221.16,21.50996633]
[1731358069132,15.6673,221.28,221.11,23.776884]
[1731358069456,5.89842276,221.27,221.11,23.776884]
[1731358070337,5.89842276,221.27,221.07,23.776884]
[1731358070538,23.776884,221.26,221.04,21.50996633]
[1731358070753,23.776884,221.24,221.04,21.50996633]
[1731358070940,12.47902276,221.23,221.04,21.50996633]
[1731358071137,12.47902276,221.23,221.06,21.50996633]
[1731358071345,12.47902276,221.23,220.99,21.50996633]
[1731358071346,6.5806,221.23,221.08,21.50996633]
[1731358071841,6.5806,221.23,221.1,21.50996633]
[1731358072043,6.5806,221.23,221.11,23.776884]
[1731358072955,6.5806,221.23,221.06,21.50996633]
[1731358073343,6.5806,221.23,221.08,21.50996633]
[1731358073539,6.5806,221.23,221.06,21.50996633]
[1731358073750,23.776884,221.22,221.01,21.50996633]
[1731358073944,23.776884,221.22,221.03,21.50996633]
[1731358074427,23.776884,221.22,221.01,21.50996633]
[1731358075138,23.776884,221.22,221.03,21.50996633]
[1731358075752,23.776884,221.22,221.01,21.50996633]
[1731358076134,23.776884,221.22,221.02,23.776884]
[1731358076826,23.776884,221.2,221.02,23.776884]
[1731358079353,15.5865,221.21,221.05,21.50996633]
[1731358079529,15.5865,221.21,221.06,23.776884]
[1731358080464,15.5865,221.21,221.09,21.50996633]
[1731358080632,6.5806,221.23,221.14,23.776884]
[1731358081145,6.5806,221.23,221.12,23.776884]
[1731358081343,6.5806,221.23,221.07,21.50996633]
[1731358081838,6.5806,221.23,221.08,23.776884]
[1731358082240,6.5806,221.23,221.06,23.776884]
[1731358082558,30.235084,221.13,220.92,18.082613]
[1731358082736,5.82388943,221.12,220.92,18.082613]
[1731358082936,10.83266629,221.12,220.93,21.50996633]
[1731358083151,6.4582,221.13,220.99,21.50996633]
[1731358083564,6.4582,221.13,220.89,0.1]
[1731358083739,6.4582,221.13,220.94,21.50996633]
[1731358083948,6.4582,221.13,220.96,21.50996633]
[1731358084148,6.4582,221.13,220.94,21.50996633]
[1731358084353,9.08489759,221.13,220.94,21.50996633]
[1731358084959,11.71159518,221.13,220.94,21.50996633]
[1731358085457,11.71159518,221.13,220.96,21.50996633]
[1731358085662,6.4582,221.13,221.0,21.50996633]
[1731358085978,22.4207,221.2,221.1,21.50996633]
[1731358086159,22.4207,221.2,221.08,21.50996633]
[1731358086361,22.4207,221.2,221.07,23.776884]
[1731358086668,22.4207,221.2,221.06,23.776884]
[1731358086867,22.4207,221.2,221.04,23.776884]
[1731358087565,22.4207,221.2,221.01,21.50996633]
[1731358087872,22.4207,221.2,220.95,15.1033]
[1731358087873,12.62633249,221.19,221.0,23.776884]
[1731358088262,5.82388943,221.19,221.0,23.776884]
[1731358088458,22.4207,221.2,221.02,23.776884]
[1731358088770,2.62669759,221.19,221.02,23.776884]
[1731358089073,6.80244306,221.19,221.0,23.776884]
[1731358089277,6.80244306,221.19,221.01,21.50996633]
[1731358089483,22.4207,221.2,221.04,23.776884]
[1731358090359,22.4207,221.2,221.06,23.776884]
[1731358090569,22.4207,221.2,221.08,23.776884]
[1731358092167,22.4207,221.2,221.04,23.776884]
[1731358092678,22.4207,221.2,221.06,23.776884]
[1731358092867,22.4207,221.2,221.03,21.50996633]
[1731358093068,22.4207,221.2,221.09,21.50996633]
[1731358093271,6.4582,221.2,221.1,23.776884]
[1731358093959,6.4582,221.2,221.04,23.776884]
[1731358094479,6.4582,221.2,221.05,21.50996633]
[1731358094773,6.4582,221.2,221.06,23.776884]
[1731358095681,6.4582,221.2,221.0,23.776884]
[1731358095869,6.4582,221.2,220.99,21.50996633]
[1731358096070,18.66881501,221.2,220.99,21.50996633]
[1731358096285,15.4941,221.18,220.97,21.50996633]
[1731358096660,23.776884,221.17,220.97,21.50996633]
[1731358096957,15.4941,221.18,220.94,6.1922]
[1731358096958,15.4941,221.18,220.99,21.50996633]
[1731358097165,15.4941,221.18,220.97,21.50996633]
[1731358097559,23.776884,221.17,220.95,21.50996633]
[1731358097779,43.776884,221.15,220.92,21.50996633]
[1731358097957,23.776884,221.13,220.92,21.50996633]
[1731358098292,29.60077343,221.13,220.94,21.50996633]
[1731358098661,29.60077343,221.13,220.92,21.50996633]
[1731358099258,16.0773,221.1,220.9,21.50996633]
[1731358099458,16.0773,221.1,220.92,21.50996633]
[1731358099685,16.0773,221.1,220.9,21.50996633]
[1731358100562,21.90118943,221.1,220.91,23.776884]
[1731358101174,21.90118943,221.1,220.93,23.776884]
[1731358101489,16.0773,221.1,220.96,23.776884]
[1731358101863,16.0773,221.1,220.94,23.776884]
[1731358102479,16.0773,221.1,220.95,21.50996633]
[1731358102681,16.0773,221.1,220.96,23.776884]
[1731358102892,16.0773,221.1,220.94,23.776884]
[1731358103371,16.0773,221.1,220.97,21.50996633]
[1731358103585,16.0773,221.1,220.98,23.776884]
[1731358103776,16.0773,221.1,220.99,21.50996633]
[1731358103974,16.0773,221.1,221.02,23.776884]
[1731358104169,6.6548,221.11,221.06,23.776884]
[1731358104873,6.6548,221.11,220.9,0.2]
[1731358105072,6.6548,221.11,221.0,23.776884]
[1731358105483,6.6548,221.11,221.02,23.776884]
[1731358105868,6.6548,221.11,220.97,21.50996633]
[1731358106284,23.776884,221.1,220.82,0.1]
[1731358106586,11.4736031,221.09,220.89,21.50996633]
[1731358106793,23.776884,221.07,220.89,21.50996633]
[1731358108171,22.00882558,221.08,220.89,21.50996633]
[1731358108482,23.776884,221.07,220.89,21.50996633]
[1731358108688,23.776884,221.05,220.87,21.50996633]
[1731358108982,27.2309077,221.05,220.87,21.50996633]
[1731358109189,27.2309077,221.05,220.85,21.50996633]
[1731358110070,30.298084,221.03,220.83,21.50996633]
[1731358110383,23.776884,221.01,220.83,21.50996633]
[1731358110587,16.5779,221.0,220.83,21.50996633]
[1731358110969,6.2777,220.98,220.79,21.50996633]
[1731358111284,12.66442558,220.98,220.79,21.50996633]
[1731358111475,40.354784,220.96,220.77,21.50996633]
[1731358111984,23.776884,220.94,220.77,21.50996633]
[1731358112283,23.776884,220.94,220.69,0.1]
[1731358112284,6.0379,220.93,220.75,21.50996633]
[1731358112476,23.776884,220.92,220.73,21.50996633]
[1731358112684,30.16258236,220.92,220.73,21.50996633]
[1731358113077,30.16258236,220.92,220.63,18.209044]
[1731358113078,23.776884,220.89,220.71,21.50996633]
[1731358113603,6.0379,220.9,220.79,21.50996633]
[1731358113775,6.0379,220.9,220.71,0.1]
[1731358113977,6.0379,220.9,220.74,21.50996633]